[Event "French Top 16-A 2024"]
[Site "Chartres"]
[Date "2024.06.01"]
[Round "3.5"]
[White "Bosc, Seraphina"]
[Black "Bailet, Pierre"]
[Result "0-1"]
[ECO "C55"]
[WhiteElo "2220"]
[BlackElo "2492"]
[Annotator "TA"]
[PlyCount "102"]
[EventDate "2024.06.01"]
[EventType "team-tourn"]
[EventCountry "FRA"]
[SourceTitle "playchess.com"]
[Source "ChessBase"]
[SourceQuality "1"]
[TimeControl "40/5400+30:1800+30"]

{[%evp 15,102,12,11,7,16,9,10,9,19,12,20,6,11,8,34,29,34,0,0,0,66,74,78,45,49,56,54,47,50,16,31,15,14,11,8,-34,50,50,65,57,61,64,54,54,70,0,0,-24,13,30,37,-68,-58,-54,-50,-104,-114,-103,-103,-112,-105,-183,-179,-175,-182,-183,-121,-270,-267,-795,-798,-763,-797,-794,-784,-29978,-29980,-29979,-29980,-29980,-29981,-29990,-29991,-29992,-161,-29993,-29994,-29994,-29995]} 1. e4 {[%emt 0:00:09]} e5 {[%emt 0:00:29]} 2. Nf3 {[%emt 0:00:13]} Nc6 {[%emt 0:00:15]} 3. Bc4 {[%emt 0:00:06]} Nf6 {[%emt 0:00:24]} 4. d3 {[%emt 0:00:06]} Be7 {[%emt 0:01:30]} 5. O-O {[%emt 0:01:54]} O-O {[%emt 0:00:19]} 6. Re1 {[%emt 0:02:16]} d6 {[%emt 0:00:38]} 7. c3 {[%emt 0:00:11]} Na5 {[%emt 0:00:44]} 8. Bb5 {[%emt 0:00:31]} a6 {[%emt 0:01:23]} 9. Ba4 {[%emt 0:00:15]} c5 {[%emt 0:00:22]} 10. Nbd2 {[%emt 0:07:29][%cal Bb1d2,Bd2f1,Bf1e3][%mdl 32]} Qc7 {[%emt 0:03:23]} 11. Nf1 {[%emt 0:02:06] The position is equal.} Nc6 {[%emt 0:02:24]} 12. Ne3 {[%emt 0:01:35]} Be6 {[%emt 0:06:23]} 13. Ng5 {[%emt 0:13:38]} Bd7 {[%emt 0:01:54]} 14. Bb3 {[%emt 0:01:42]} h6 {[%emt 0:02:39]} 15. Nf3 {[%emt 0:01:05]} Be6 {[%emt 0:07:20]} 16. Nd5 {[%emt 0:07:39]} Bxd5 {[%emt 0:01:53]} 17. exd5 {[%emt 0:00:22]} Nb8 {[%emt 0:14:07]} (17... Na5 $11) 18. Nh4 $14 {[%emt 0:05:11]} Re8 {[%emt 0:12:14]} 19. Qf3 {[%emt 0:06:42] Black must now prevent Nf5.} Nbd7 {[%emt 0:02:01]} 20. Nf5 {[%emt 0:01:57] Qg3 is the strong threat.} Bf8 {[%emt 0:00:45]} 21. Bd2 {[%emt 0:00:33]} h5 {[%emt 0:03:14]} 22. a4 {[%emt 0:09:09]} g6 {[%emt 0:10:06]} 23. Ng3 {[%emt 0:04:51]} b5 {[%emt 0:03:22]} 24. c4 {[%emt 0:12:09]} bxc4 {[%emt 0:02:50]} 25. dxc4 {[%emt 0:01:13]} a5 {[%emt 0:01:03]} (25... Rab8 $15) 26. Bc2 {[%emt 0:00:25]} Bg7 {[%emt 0:01:06][%cal Oe5e4]} 27. Rab1 {[%emt 0:03:19]} Nf8 {[%emt 0:07:19][%cal Bd7f8,Bf8h7,Bh7f6,Bf6g4][%mdl 32]} 28. b3 {[%emt 0:01:33]} N6h7 {[%emt 0:02:01]} 29. Ne4 {[%emt 0:10:57]} f5 {[%emt 0:00:58]} 30. Ng5 {[%emt 0:00:28]} ({White should try} 30. Nc3 $14) 30... Nxg5 $11 {[%emt 0:00:46]} 31. Bxg5 {[%emt 0:00:02]} Nh7 {[%emt 0:01:02]} 32. Bd2 {[%emt 0:00:15]} Qf7 {[%emt 0:01:50]} 33. g3 {[%emt 0:03:41]} (33. Qg3 $14) 33... e4 $36 {[%emt 0:02:43][%mdl 2048] Black is more active.} 34. Qe2 {[%emt 0:00:35]} Bd4 {[%emt 0:00:58]} 35. Be3 {[%emt 0:00:25]} ({White should play} 35. Kh1 $15) 35... Nf6 $17 {[%emt 0:03:39] Black is more active.} 36. Qd2 {[%emt 0:01:07]} Bxe3 {[%emt 0:00:17]} 37. Qxe3 {[%emt 0:01:21]} Ng4 {[%emt 0:00:59]} 38. Qd2 {[%emt 0:01:10]} (38. Qf4 $17 {might work better.}) 38... Ne5 $19 {[%emt 0:01:55] Hoping for ...Nf3+.} 39. Bd1 {[%emt 0:00:07]} Qf6 {[%emt 0:00:32]} 40. Be2 {[%emt 0:00:27]} Kg7 {[%emt 0:00:49]} (40... h4 $19 41. Rf1 Re7) 41. Kg2 {[%emt 0:30:13] Loses the game.} (41. h4 $17) 41... h4 {[%emt 0:30:50]} 42. f4 $2 {[%emt 0:00:00]} (42. Qc2) 42... exf3+ {[%emt 0:00:00]} 43. Bxf3 {[%emt 0:00:00] [#]} h3+ $1 {[%emt 0:00:00][%mdl 512]} 44. Kf2 {[%emt 0:00:00] [#]} f4 $1 {[%emt 0:00:00][%mdl 512]} 45. Rf1 {[%emt 0:00:00]} (45. gxf4 Qh4+) 45... Nxf3 {[%emt 0:00:00]} 46. Kxf3 {[%emt 0:00:00]} Re3+ {[%emt 0:00:00]} 47. Kf2 {[%emt 0:00:00] White is weak on the dark squares} Rae8 {[%emt 0:00:00]} (47... fxg3+ 48. Kxe3 Re8+ 49. Kd3 Qd4+ 50. Kc2 Qe4+ (50... Qxd2+ 51. Kxd2 g2 52. Rf3 $18) 51. Kb2 $11) 48. Kg1 {[%emt 0:00:00]} Re2 {[%emt 0:00:00]} 49. Qxf4 {[%emt 0:00:00]} Rg2+ {[%emt 0:00:00]} 50. Kh1 {[%emt 0:00:00]} Qxf4 {[%emt 0:00:00]} 51. Rxf4 {[%emt 0:00:00]} Ree2 {[%emt 0:00:00] Weighted Error Value: White=0.52/Black=0.09 (flawless) .  Mistake:       	White=6     	Black=3      Inaccurate:     	White=4     	Black=2      OK:         	White=11    	Black=18     Best:        	White=1     	Black=1} 0-1

[Event "French Top 16-A 2024"]
[Site "Chartres"]
[Date "2024.06.01"]
[Round "3.6"]
[White "Benitah, Yohan"]
[Black "Milliet, Sophie"]
[Result "1/2-1/2"]
[ECO "E11"]
[WhiteElo "2342"]
[BlackElo "2385"]
[Annotator "RC"]
[PlyCount "99"]
[EventDate "2024.06.01"]
[EventType "team-tourn"]
[EventCountry "FRA"]
[SourceTitle "playchess.com"]
[Source "ChessBase"]
[SourceQuality "1"]
[TimeControl "40/5400+30:1800+30"]

1. d4 {[%emt 0:00:03]} Nf6 {[%emt 0:00:06]} 2. Nf3 {[%emt 0:00:06]} e6 {[%emt 0:02:19]} 3. c4 {[%emt 0:00:55]} Bb4+ {[%emt 0:03:39]} 4. Bd2 {[%emt 0:00:29]} Qe7 {[%emt 0:00:11]} 5. Qc2 {[%emt 0:07:23]} Bxd2+ {[%emt 0:04:42]} 6. Nbxd2 {[%emt 0:01:50]} d6 {[%emt 0:00:16]} 7. e3 {[%emt 0:04:46]} e5 {[%emt 0:01:44]} 8. Bd3 {[%emt 0:02:22]} O-O {[%emt 0:04:16]} 9. O-O {[%emt 0:00:24]} h6 {[%emt 0:07:41]} 10. a3 {[%emt 0:04:02]} Re8 {[%emt 0:08:28]} 11. e4 {[%emt 0:02:24]} a5 {[%emt 0:06:50]} 12. Rfe1 {[%emt 0:21:16]} a4 {[%emt 0:06:33]} 13. Rac1 {[%emt 0:06:56]} c5 {[%emt 0:15:18]} 14. dxe5 {[%emt 0:02:56]} dxe5 {[%emt 0:00:05]} 15. Nb1 {[%emt 0:00:04]} Bg4 {[%emt 0:01:21]} 16. Be2 {[%emt 0:01:53]} Bxf3 {[%emt 0:00:29]} 17. Bxf3 {[%emt 0:00:03]} Nc6 {[%emt 0:00:06]} 18. Nc3 {[%emt 0:01:12]} Nd4 {[%emt 0:00:19]} 19. Qd3 {[%emt 0:00:39]} Red8 {[%emt 0:04:32]} 20. Qe3 {[%emt 0:01:20]} Nb3 {[%emt 0:08:38]} 21. Rcd1 {[%emt 0:01:33]} Rd4 {[%emt 0:02:57]} 22. Be2 {[%emt 0:12:56]} Rad8 {[%emt 0:02:04]} 23. Nxa4 {[%emt 0:04:32]} Nd2 {[%emt 0:01:03]} 24. Nc3 {[%emt 0:02:56]} Ndxe4 {[%emt 0:02:03]} 25. Nb5 {[%emt 0:01:56]} Rxd1 {[%emt 0:02:52]} 26. Rxd1 {[%emt 0:00:46]} Rxd1+ {[%emt 0:03:39]} 27. Bxd1 {[%emt 0:00:05]} b6 {[%emt 0:02:00]} 28. Qd3 {[%emt 0:01:41]} Ng5 {[%emt 0:08:19]} 29. Qd6 {[%emt 0:01:07]} Qe6 {[%emt 0:01:01]} 30. Qd8+ {[%emt 0:08:12]} Kh7 {[%emt 0:00:23]} 31. h4 {[%emt 0:00:17]} Nge4 {[%emt 0:00:12]} 32. Qd3 {[%emt 0:00:04]} g6 {[%emt 0:00:50]} 33. Bf3 {[%emt 0:00:36]} Qf5 {[%emt 0:01:32]} 34. h5 {[%emt 0:04:23]} Qf4 {[%emt 0:00:29]} 35. hxg6+ {[%emt 0:00:08]} fxg6 {[%emt 0:00:16]} 36. Qe3 {[%emt 0:03:17]} Qxe3 {[%emt 0:00:39]} 37. fxe3 {[%emt 0:00:02]} Kg7 {[%emt 0:00:20]} 38. Nc7 {[%emt 0:00:42]} Nd6 {[%emt 0:00:18]} 39. b3 {[%emt 0:01:00]} e4 {[%emt 0:00:43]} 40. Be2 {[%emt 0:00:33]} Kf7 {[%emt 0:00:12]} 41. b4 {[%emt 0:30:45]} Nd7 {[%emt 0:30:52]} 42. Nd5 {[%emt 0:02:02]} cxb4 {[%emt 0:00:00]} 43. axb4 {[%emt 0:00:00]} h5 {[%emt 0:00:00]} 44. Kf2 {[%emt 0:00:00]} Ke6 {[%emt 0:00:00]} 45. g3 {[%emt 0:00:00]} Ke5 {[%emt 0:00:00]} 46. Nf4 {[%emt 0:00:00]} Kf5 {[%emt 0:00:00]} 47. Bf1 {[%emt 0:00:00]} g5 {[%emt 0:00:00]} 48. Bh3+ {[%emt 0:00:00]} g4 {[%emt 0:00:00]} 49. Bf1 {[%emt 0:00:00]} Ne5 {[%emt 0:00:00]} 50. c5 {[%emt 0:00:00]} 1/2-1/2

[Event "French Top 16-A 2024"]
[Site "Chartres"]
[Date "2024.06.01"]
[Round "3.6"]
[White "Migot, Tangi"]
[Black "De Balmann, Marc"]
[Result "1-0"]
[ECO "C02"]
[WhiteElo "2326"]
[BlackElo "2151"]
[Annotator "RC"]
[PlyCount "121"]
[EventDate "2024.06.01"]
[EventType "team-tourn"]
[EventCountry "FRA"]
[SourceTitle "playchess.com"]
[Source "ChessBase"]
[SourceQuality "1"]
[TimeControl "40/5400+30:1800+30"]

1. e4 {[%emt 0:00:03]} e6 {[%emt 0:00:04]} 2. d4 {[%emt 0:00:07]} d5 {[%emt 0:00:04]} 3. e5 {[%emt 0:00:08]} c5 {[%emt 0:00:10]} 4. c3 {[%emt 0:00:04]} Nc6 {[%emt 0:00:06]} 5. Nf3 {[%emt 0:00:06]} Qb6 {[%emt 0:00:07]} 6. a3 {[%emt 0:00:22]} c4 {[%emt 0:00:12]} 7. Nbd2 {[%emt 0:00:39]} Na5 {[%emt 0:00:26]} 8. Rb1 {[%emt 0:00:10]} Bd7 {[%emt 0:00:16]} 9. h4 {[%emt 0:00:18]} Ne7 {[%emt 0:00:49]} 10. h5 {[%emt 0:00:42]} h6 {[%emt 0:00:15]} 11. b4 {[%emt 0:01:10]} cxb3 {[%emt 0:02:36]} 12. Nxb3 {[%emt 0:00:16]} Nxb3 {[%emt 0:05:07]} 13. Rxb3 {[%emt 0:01:37]} Qc7 {[%emt 0:00:07]} 14. Qd3 {[%emt 0:16:31]} Rc8 {[%emt 0:03:52]} 15. Qb1 {[%emt 0:07:31]} b6 {[%emt 0:20:56]} 16. Ba6 {[%emt 0:00:10]} Rb8 {[%emt 0:00:18]} 17. Qd3 {[%emt 0:03:40]} Nc6 {[%emt 0:01:59]} 18. Rb1 {[%emt 0:02:44]} Na5 {[%emt 0:01:00]} 19. Nd2 {[%emt 0:00:54]} Be7 {[%emt 0:11:15]} 20. O-O {[%emt 0:06:45]} O-O {[%emt 0:02:38]} 21. f4 {[%emt 0:08:48]} f6 {[%emt 0:03:24]} 22. c4 {[%emt 0:19:10]} fxe5 {[%emt 0:06:38]} 23. cxd5 {[%emt 0:03:05]} exd5 {[%emt 0:05:39]} 24. fxe5 {[%emt 0:04:12]} Rxf1+ {[%emt 0:02:08]} 25. Nxf1 {[%emt 0:03:20]} b5 {[%emt 0:09:44]} 26. Bf4 {[%emt 0:10:55]} Be8 {[%emt 0:08:59]} 27. Bxb5 {[%emt 0:04:23]} Qb6 {[%emt 0:00:51]} 28. Ba4 {[%emt 0:02:40]} Qxb1 {[%emt 0:01:36]} 29. Bc2 {[%emt 0:00:04]} Qb6 {[%emt 0:05:12]} 30. Qh7+ {[%emt 0:00:34]} Kf8 {[%emt 0:00:56]} 31. Qh8+ {[%emt 0:01:19]} Kf7 {[%emt 0:00:01]} 32. Bg6+ {[%emt 0:00:18]} Ke6 {[%emt 0:00:02]} 33. Qg8+ {[%emt 0:00:29]} Kd7 {[%emt 0:00:49]} 34. Qxd5+ {[%emt 0:02:21]} Kc7 {[%emt 0:02:38]} 35. e6+ {[%emt 0:01:40]} Bd6 {[%emt 0:00:02]} 36. Bxd6+ {[%emt 0:00:24]} Qxd6 {[%emt 0:00:01]} 37. Qxa5+ {[%emt 0:00:06]} Kc8 {[%emt 0:01:26]} 38. Qc3+ {[%emt 0:00:51]} Kd8 {[%emt 0:00:32]} 39. Qa5+ {[%emt 0:00:45]} Kc8 {[%emt 0:03:04]} 40. Qc3+ {[%emt 0:00:21]} Kd8 {[%emt 0:00:02]} 41. Bf5 {[%emt 0:04:09]} Rb7 {[%emt 0:13:50]} 42. Ne3 {[%emt 0:12:44]} Rc7 {[%emt 0:02:27]} 43. Qb2 {[%emt 0:00:22]} Ke7 {[%emt 0:03:08]} 44. d5 {[%emt 0:04:20]} Kf8 {[%emt 0:01:06]} 45. Bh7 {[%emt 0:04:31]} Bxh5 {[%emt 0:02:56]} 46. Qf2+ {[%emt 0:00:36]} Ke8 {[%emt 0:00:29]} 47. g4 {[%emt 0:01:20]} Bxg4 {[%emt 0:01:48]} 48. Bg6+ {[%emt 0:00:04]} Kd8 {[%emt 0:00:28]} 49. Qh4+ {[%emt 0:00:19]} Qe7 {[%emt 0:02:29]} 50. Qxg4 {[%emt 0:00:19]} Rc1+ {[%emt 0:00:37]} 51. Kg2 {[%emt 0:01:25]} Qxa3 {[%emt 0:00:16]} 52. Qh4+ {[%emt 0:01:19]} Kc7 {[%emt 0:02:40]} 53. Qf4+ {[%emt 0:01:51]} Kb7 {[%emt 0:02:04]} 54. Be4 {[%emt 0:00:18]} g5 {[%emt 0:01:59]} 55. d6+ {[%emt 0:01:11]} Ka6 {[%emt 0:00:45]} 56. Qe5 {[%emt 0:01:00]} Re1 {[%emt 0:03:07]} 57. Bb7+ {[%emt 0:01:52]} Kxb7 {[%emt 0:00:30]} 58. Qb5+ {[%emt 0:00:07]} Ka8 {[%emt 0:00:39]} 59. Qc6+ {[%emt 0:00:05]} Kb8 {[%emt 0:00:04]} 60. Qc7+ {[%emt 0:00:04]} Ka8 {[%emt 0:00:05]} 61. Qc8# {[%emt 0:00:04]} 1-0

[Event "French Top 16-A 2024"]
[Site "Chartres"]
[Date "2024.06.01"]
[Round "3.7"]
[White "Sochacki, Christophe"]
[Black "Tahay, Alexis"]
[Result "1/2-1/2"]
[ECO "B97"]
[WhiteElo "2451"]
[BlackElo "2376"]
[Annotator "TA"]
[PlyCount "90"]
[EventDate "2024.06.01"]
[EventType "team-tourn"]
[EventCountry "FRA"]
[SourceTitle "playchess.com"]
[Source "ChessBase"]
[SourceQuality "1"]
[TimeControl "40/5400+30:1800+30"]

{[%evp 20,90,-17,-60,-48,-59,0,-80,-41,-32,-67,-47,-31,-14,-57,-33,-60,-38,-22,-45,-54,-54,0,-114,-134,-85,-105,-106,-94,-124,-120,-209,-201,-200,-210,-209,-216,-216,-216,-216,-205,-173,-136,-131,-123,-123,-5,-5,-5,-5,-5,-5,-5,-5,0,0,0,0,0,0,0,0,0,0,0,0,0,0,0,0,0,0,0]} 1. e4 {[%emt 0:01:33]} c5 {[%emt 0:00:59]} 2. Nf3 {[%emt 0:00:05]} d6 {[%emt 0:00:04]} 3. d4 {[%emt 0:00:16]} cxd4 {[%emt 0:00:05]} 4. Nxd4 {[%emt 0:00:05]} Nf6 {[%emt 0:00:05]} 5. Nc3 {[%emt 0:00:04]} a6 {[%emt 0:00:03]} 6. Bg5 {[%emt 0:01:36]} e6 {[%emt 0:00:18]} 7. f4 {[%emt 0:01:16]} Qb6 {[%emt 0:01:17]} 8. Qd2 {[%emt 0:00:54]} Qxb2 {[%emt 0:00:44]} 9. Rb1 {[%emt 0:00:05]} Qa3 {[%emt 0:00:03]} 10. e5 {[%emt 0:00:06]} h6 {[%emt 0:00:04]} 11. Bh4 {[%emt 0:00:10]} (11. exf6 hxg5 12. fxg7 Bxg7 13. fxg5 b5 $17) 11... dxe5 {[%emt 0:00:28]} 12. fxe5 {[%emt 0:00:05]} g5 {[%emt 0:01:40]} (12... Nfd7 $1 $15 13. Ne4 Qxa2) 13. Bg3 {[%emt 0:01:14]} (13. exf6 $11 {remains equal.} gxh4 14. Be2) 13... Nh5 $1 $17 {[%emt 0:01:34] And now ...Nxg3 would win. Black is better.} 14. Ne4 {[%emt 0:03:35]} Qxa2 {[%emt 0:03:12]} (14... Nxg3 15. Nf6+ Ke7 16. Rb4 $18) 15. Rb3 {[%emt 0:01:21] Strongly threatening Be2.} Nd7 {[%emt 0:03:03] ...Nc5 is the strong threat.} 16. Be2 {[%emt 0:01:53]} Qa1+ $1 {[%emt 0:04:33]} 17. Bd1 $1 {[%emt 0:00:50]} Nc5 $1 {[%emt 0:01:59]} 18. Nxc5 {[%emt 0:02:15]} Nxg3 {[%emt 0:08:21]} 19. hxg3 {[%emt 0:39:58]} Bxc5 {[%emt 0:00:09]} 20. c3 {[%emt 0:00:03]} Bd7 {[%emt 0:07:08]} (20... Rf8 $15) 21. O-O {[%emt 0:06:30]} (21. Rxb7 $11 O-O-O 22. O-O) 21... Bb5 {[%emt 0:26:11]} 22. Be2 {[%emt 0:23:10] [#]} Qa4 {[%emt 0:07:52]} 23. Kh2 {[%emt 0:01:28][%cal Rb3b5] [#] Rxb5 would now be deadly.} Rd8 $1 {[%emt 0:19:33][%cal Rc5d4]} ({Of course not} 23... Bxe2 $6 24. Qxe2 Ra7 (24... Bxd4 25. Rxb7 O-O 26. cxd4 $18) 25. Rbb1 $11) 24. Bxb5+ {[%emt 0:09:30]} axb5 {[%emt 0:00:01]} 25. Qe2 {[%emt 0:00:41]} (25. Qd1 $17 {was called for.}) 25... Rxd4 {[%emt 0:05:18]} ({Weaker is} 25... Bxd4 26. Rb4 Qa6 27. cxd4 $11) 26. cxd4 {[%emt 0:00:05]} Qxb3 {[%emt 0:00:03]} 27. dxc5 $19 {[%emt 0:01:20][%mdl 4096] Endgame. KQR-KQR} Qc4 {[%emt 0:00:56]} 28. Qf2 {[%emt 0:01:37]} O-O {[%emt 0:00:03]} 29. Rd1 {[%emt 0:00:05]} Qe4 {[%emt 0:04:43]} 30. Rd7 {[%emt 0:00:35]} b4 {[%emt 0:02:30][%cal Ob4b3]} 31. Qf6 {[%emt 0:00:03]} b3 {[%emt 0:01:53] aiming for ...b2.} 32. Qxh6 {[%emt 0:00:12]} Qh7 {[%emt 0:00:24]} ({Black should play} 32... Qxe5 $17 {White must now prevent ...Rb8.} 33. Rxb7 Rc8 (33... Qxc5 34. Qf6 $15)) 33. Qxh7+ $11 {[%emt 0:00:11] The position is equal.} Kxh7 {[%emt 0:00:01]} 34. Rxb7 {[%emt 0:00:02] KR-KR} Kg6 {[%emt 0:00:44]} 35. Rxb3 {[%emt 0:00:02]} Kf5 {[%emt 0:00:28]} 36. Re3 {[%emt 0:02:06]} g4 {[%emt 0:01:14]} 37. Re1 {[%emt 0:00:02]} Rc8 {[%emt 0:00:37]} 38. Rf1+ {[%emt 0:00:01]} Kxe5 {[%emt 0:00:17]} 39. Rxf7 {[%emt 0:00:02]} Rxc5 {[%emt 0:00:07]} 40. Rf4 {[%emt 0:00:25]} Rc8 {[%emt 0:00:50]} 41. Rxg4 {[%emt 0:30:13]} Kf5 {[%emt 0:30:02]} 42. Rf4+ {[%emt 0:00:09]} Kg5 {[%emt 0:00:04]} 43. Kg1 {[%emt 0:00:57]} e5 {[%emt 0:00:03]} 44. Rf7 {[%emt 0:00:09]} Rc2 {[%emt 0:00:54]} 45. Rf2 {[%emt 0:00:58]} Rxf2 {[%emt 0:00:17] White happily takes the draw.   Weighted Error Value: White=0.15 (very precise) /Black=0.10 (very precise) .  Mistake:       	White=3     	Black=3      OK:         	White=18    	Black=11     Best:        	White=5     	Black=1      Strong:       	White=1     	Black=4} 1/2-1/2

[Event "French Top 16-A 2024"]
[Site "Chartres"]
[Date "2024.06.01"]
[Round "3.7"]
[White "Lemonnier, Remi"]
[Black "Pucher, Sebastien"]
[Result "1-0"]
[ECO "B06"]
[WhiteElo "2022"]
[BlackElo "2196"]
[Annotator "RC"]
[PlyCount "83"]
[EventDate "2024.06.01"]
[EventType "team-tourn"]
[EventCountry "FRA"]
[SourceTitle "playchess.com"]
[Source "ChessBase"]
[SourceQuality "1"]
[TimeControl "40/5400+30:1800+30"]

1. e4 {[%emt 0:00:03]} g6 {[%emt 0:01:10]} 2. d4 {[%emt 0:00:19]} Bg7 {[%emt 0:00:05]} 3. Nc3 {[%emt 0:00:17]} d5 {[%emt 0:00:23]} 4. Nxd5 {[%emt 0:01:34]} c6 {[%emt 0:00:15]} 5. Ne3 {[%emt 0:00:49]} Qxd4 {[%emt 0:00:35]} 6. Qxd4 {[%emt 0:01:34]} Bxd4 {[%emt 0:00:03]} 7. f3 {[%emt 0:03:59]} Bg7 {[%emt 0:06:19]} 8. a4 {[%emt 0:02:01]} b6 {[%emt 0:02:07]} 9. Bc4 {[%emt 0:11:53]} Nf6 {[%emt 0:07:02]} 10. Ne2 {[%emt 0:03:31]} Nbd7 {[%emt 0:02:18]} 11. Bd2 {[%emt 0:09:46]} O-O {[%emt 0:04:49]} 12. Bc3 {[%emt 0:01:19]} Bb7 {[%emt 0:29:31]} 13. Kf2 {[%emt 0:11:19]} a6 {[%emt 0:10:28]} 14. Rhd1 {[%emt 0:06:13]} e5 {[%emt 0:04:25]} 15. Bb4 {[%emt 0:22:14]} Rfe8 {[%emt 0:05:55]} 16. Bd6 {[%emt 0:04:56]} b5 {[%emt 0:03:10]} 17. Ba2 {[%emt 0:04:31]} Bf8 {[%emt 0:01:14]} 18. g4 {[%emt 0:01:04]} h6 {[%emt 0:13:07]} 19. h4 {[%emt 0:00:04]} Kg7 {[%emt 0:00:26]} 20. Rd2 {[%emt 0:03:36]} Bxd6 {[%emt 0:03:32]} 21. Rxd6 {[%emt 0:00:02]} Nc5 {[%emt 0:00:08]} 22. Kg2 {[%emt 0:03:16]} Nxa4 {[%emt 0:00:32]} 23. g5 {[%emt 0:00:11]} hxg5 {[%emt 0:00:07]} 24. hxg5 {[%emt 0:00:04]} Ng8 {[%emt 0:00:09]} 25. Rd7 {[%emt 0:01:52]} Re7 {[%emt 0:00:29]} 26. Rad1 {[%emt 0:01:03]} Rae8 {[%emt 0:02:22]} 27. b4 {[%emt 0:01:06]} Bc8 {[%emt 0:01:28]} 28. Rxe7 {[%emt 0:02:06]} Nxe7 {[%emt 0:01:10]} 29. Rd6 {[%emt 0:00:37]} Nb6 {[%emt 0:00:50]} 30. Nc1 {[%emt 0:01:39]} Bd7 {[%emt 0:00:49]} 31. Nd3 {[%emt 0:00:38]} Nec8 {[%emt 0:00:12]} 32. Rf6 {[%emt 0:00:13]} Re7 {[%emt 0:00:29]} 33. Nc5 {[%emt 0:02:22]} Be8 {[%emt 0:00:17]} 34. Ng4 {[%emt 0:00:20]} Na4 {[%emt 0:01:02]} 35. Nd3 {[%emt 0:00:42]} Ncb6 {[%emt 0:00:30]} 36. Ndxe5 {[%emt 0:00:24]} Nc3 {[%emt 0:00:31]} 37. Bb3 {[%emt 0:00:11]} Nb1 {[%emt 0:00:28]} 38. Nxc6 {[%emt 0:00:29]} Rc7 {[%emt 0:00:28]} 39. Nce5 {[%emt 0:00:44]} Nc4 {[%emt 0:00:26]} 40. Bxc4 {[%emt 0:00:47]} bxc4 {[%emt 0:00:03]} 41. Rxa6 {[%emt 0:02:49]} Re7 {[%emt 0:07:48]} 42. Ra8 {[%emt 0:02:35]} 1-0

[Event "French Top 16-A 2024"]
[Site "Chartres"]
[Date "2024.06.01"]
[Round "3.8"]
[White "Hejazipour, Mitra"]
[Black "Loiseau, Quentin"]
[Result "1/2-1/2"]
[ECO "D23"]
[WhiteElo "2376"]
[BlackElo "2411"]
[Annotator "RC"]
[PlyCount "128"]
[EventDate "2024.06.01"]
[EventType "team-tourn"]
[EventCountry "FRA"]
[SourceTitle "playchess.com"]
[Source "ChessBase"]
[SourceQuality "1"]
[TimeControl "40/5400+30:1800+30"]

1. d4 {[%emt 0:00:02]} Nf6 {[%emt 0:03:08]} 2. c4 {[%emt 0:00:14]} e6 {[%emt 0:00:05]} 3. Nf3 {[%emt 0:00:17]} d5 {[%emt 0:00:28]} 4. Nc3 {[%emt 0:00:17]} dxc4 {[%emt 0:02:43]} 5. Qa4+ {[%emt 0:00:32]} Nbd7 {[%emt 0:02:18]} 6. e4 {[%emt 0:01:45]} a6 {[%emt 0:02:50]} 7. Bxc4 {[%emt 0:05:25]} Rb8 {[%emt 0:18:23]} 8. Qc2 {[%emt 0:19:52]} b5 {[%emt 0:00:24]} 9. Bd3 {[%emt 0:04:29]} c5 {[%emt 0:20:20]} 10. d5 {[%emt 0:22:09]} Bd6 {[%emt 0:10:06]} 11. O-O {[%emt 0:04:57]} Qc7 {[%emt 0:06:34]} 12. dxe6 {[%emt 0:02:29]} fxe6 {[%emt 0:01:04]} 13. h3 {[%emt 0:02:40]} c4 {[%emt 0:05:18]} 14. Be2 {[%emt 0:00:09]} O-O {[%emt 0:01:05]} 15. Bg5 {[%emt 0:03:48]} Bb7 {[%emt 0:02:19]} 16. Rad1 {[%emt 0:08:27]} Bc5 {[%emt 0:04:14]} 17. a3 {[%emt 0:06:23]} Rbe8 {[%emt 0:03:10]} 18. Bh4 {[%emt 0:01:25]} Ne5 {[%emt 0:01:42]} 19. Kh1 {[%emt 0:02:34]} Nh5 {[%emt 0:01:07]} 20. Nxe5 {[%emt 0:03:53]} Qxe5 {[%emt 0:00:02]} 21. Bxh5 {[%emt 0:00:24]} Qxh5 {[%emt 0:00:06]} 22. Bg3 {[%emt 0:00:10]} Rd8 {[%emt 0:01:33]} 23. b3 {[%emt 0:02:46]} Bxa3 {[%emt 0:02:33]} 24. bxc4 {[%emt 0:00:26]} Rxd1 {[%emt 0:01:59]} 25. Nxd1 {[%emt 0:03:51]} Qc5 {[%emt 0:02:28]} 26. Ne3 {[%emt 0:01:24]} Rc8 {[%emt 0:04:54]} 27. Rd1 {[%emt 0:00:41]} b4 {[%emt 0:01:25]} 28. Bd6 {[%emt 0:01:08]} Qc6 {[%emt 0:00:53]} 29. e5 {[%emt 0:01:08]} a5 {[%emt 0:00:48]} 30. Rd4 {[%emt 0:00:50]} Qe8 {[%emt 0:00:50]} 31. Rg4 {[%emt 0:00:38]} a4 {[%emt 0:00:24]} 32. Qd2 {[%emt 0:00:10]} Rd8 {[%emt 0:00:26]} 33. Nc2 {[%emt 0:01:37]} Qh5 {[%emt 0:00:27]} 34. Qe3 {[%emt 0:00:00]} Qf5 {[%emt 0:00:48]} 35. Nxa3 {[%emt 0:00:00]} bxa3 {[%emt 0:00:03]} 36. Qxa3 {[%emt 0:00:34]} Qxf2 {[%emt 0:00:26]} 37. Qb4 {[%emt 0:00:49]} h5 {[%emt 0:00:56]} 38. Rxg7+ {[%emt 0:00:33]} Kxg7 {[%emt 0:00:05]} 39. Qxb7+ {[%emt 0:00:01]} Qf7 {[%emt 0:00:55]} 40. Qa6 {[%emt 0:00:53]} Qf1+ {[%emt 0:00:15]} 41. Kh2 {[%emt 0:30:04]} Qf4+ {[%emt 0:02:20]} 42. Kh1 {[%emt 0:00:00]} Rd7 {[%emt 0:01:23]} 43. Qxa4 {[%emt 0:00:00]} Rb7 {[%emt 0:01:34]} 44. Qc2 {[%emt 0:00:00]} Qf1+ {[%emt 0:07:17]} 45. Kh2 {[%emt 0:00:00]} Qf4+ {[%emt 0:00:08]} 46. Kh1 {[%emt 0:00:00]} Qd4 {[%emt 0:00:41]} 47. Qc1 {[%emt 0:00:00]} Kg6 {[%emt 0:04:30]} 48. Bf8 {[%emt 0:00:00]} Kf7 {[%emt 0:02:29]} 49. Bd6 {[%emt 0:00:00]} h4 {[%emt 0:07:17]} 50. Qf1+ {[%emt 0:00:00]} Kg8 {[%emt 0:00:10]} 51. c5 {[%emt 0:00:00]} Qe4 {[%emt 0:07:19]} 52. Qf8+ {[%emt 0:01:32]} Kh7 {[%emt 0:00:01]} 53. Kh2 {[%emt 0:01:11]} Qe3 {[%emt 0:00:50]} 54. Qf1 {[%emt 0:00:13]} Qg3+ {[%emt 0:00:35]} 55. Kh1 {[%emt 0:00:05]} Qc3 {[%emt 0:00:46]} 56. Qf4 {[%emt 0:05:35]} Qe1+ {[%emt 0:00:17]} 57. Kh2 {[%emt 0:00:00]} Rg7 {[%emt 0:00:59]} 58. c6 {[%emt 0:00:00]} Qg3+ {[%emt 0:00:18]} 59. Qxg3 {[%emt 0:00:00]} hxg3+ {[%emt 0:00:03]} 60. Kg1 {[%emt 0:00:00]} Ra7 {[%emt 0:00:14]} 61. Kf1 {[%emt 0:00:00]} Ra2 {[%emt 0:00:33]} 62. c7 {[%emt 0:00:00]} Rc2 {[%emt 0:00:03]} 63. Ke1 {[%emt 0:00:00]} Kg6 {[%emt 0:00:05]} 64. Kd1 {[%emt 0:00:00]} Rc6 {[%emt 0:00:20]} 1/2-1/2